[Event "Early-Titled-Tuesday-Blitz-October-17-2023"]
[Site "Chess.com"]
[Date "2023.10.17"]
[Round "1"]
[White "Casper"]
[Black "Egor_Koshulyan"]
[Result "0-1"]
[WhiteElo "2422"]
[BlackElo "2716"]
[TimeControl "180+1"]
[EndTime "8:01:56 PDT"]
[Termination "Egor_Koshulyan won by resignation"]

1. e4 {[%clk 0:03:00.9]} 1... c5 {[%clk 0:03:00.2]} 2. d4 {[%clk 0:02:59.7]}
2... cxd4 {[%clk 0:03:00.3]} 3. Qxd4 {[%clk 0:03:00.6]} 3... Nc6 {[%clk
0:03:00.1]} 4. Qe3 {[%clk 0:03:01.2]} 4... Nf6 {[%clk 0:02:58]} 5. Nc3 {[%clk
0:03:01.3]} 5... d5 {[%clk 0:02:50]} 6. exd5 {[%clk 0:03:01.1]} 6... Nxd5 {[%clk
0:02:50.5]} 7. Nxd5 {[%clk 0:03:02]} 7... Qxd5 {[%clk 0:02:50.9]} 8. Qb3 {[%clk
0:03:02.9]} 8... Qxb3 {[%clk 0:02:46.5]} 9. axb3 {[%clk 0:03:03.8]} 9... Nb4
{[%clk 0:02:42.7]} 10. Ra4 {[%clk 0:02:41.7]} 10... e5 {[%clk 0:02:34]} 11. Bb5+
{[%clk 0:02:27.1]} 11... Bd7 {[%clk 0:02:31.6]} 12. Bxd7+ {[%clk 0:02:26.8]}
12... Kxd7 {[%clk 0:02:32.5]} 13. c3 {[%clk 0:02:27.5]} 13... Nd3+ {[%clk
0:02:31]} 0-1

[Event "Early-Titled-Tuesday-Blitz-October-17-2023"]
[Site "Chess.com"]
[Date "2023.10.17"]
[Round "1"]
[White "LeoLV10"]
[Black "DarZay"]
[Result "1-0"]
[WhiteElo "2576"]
[BlackElo "2225"]
[TimeControl "180+1"]
[EndTime "8:02:04 PDT"]
[Termination "LeoLV10 won by resignation"]

1. e4 {[%clk 0:02:59.7]} 1... c5 {[%clk 0:02:59.7]} 2. Nf3 {[%clk 0:02:54.5]}
2... Nc6 {[%clk 0:02:59.8]} 3. d4 {[%clk 0:02:50.2]} 3... cxd4 {[%clk
0:02:55.6]} 4. Nxd4 {[%clk 0:02:51.1]} 4... Nf6 {[%clk 0:02:53.8]} 5. Nc3 {[%clk
0:02:51]} 5... d6 {[%clk 0:02:53.3]} 6. Bg5 {[%clk 0:02:50.9]} 6... e6 {[%clk
0:02:48.1]} 7. Qd3 {[%clk 0:02:50.1]} 7... a6 {[%clk 0:02:47.9]} 8. O-O-O {[%clk
0:02:48.2]} 8... Be7 {[%clk 0:02:42.2]} 9. f4 {[%clk 0:02:48.2]} 9... Bd7 {[%clk
0:02:40.1]} 10. Be2 {[%clk 0:02:39.9]} 10... Qa5 {[%clk 0:02:35.8]} 11. Nb3
{[%clk 0:02:35.5]} 11... Qc7 {[%clk 0:02:31.1]} 12. Bxf6 {[%clk 0:02:34.8]}
12... gxf6 {[%clk 0:02:30.6]} 13. Bh5 {[%clk 0:02:34.8]} 13... O-O-O {[%clk
0:02:26.6]} 14. Bxf7 {[%clk 0:02:33.5]} 14... Rhf8 {[%clk 0:02:24.2]} 15. Bh5
{[%clk 0:02:33.3]} 15... e5 {[%clk 0:02:08.9]} 16. Nd5 {[%clk 0:02:29.3]} 1-0

[Event "Early-Titled-Tuesday-Blitz-October-17-2023"]
[Site "Chess.com"]
[Date "2023.10.17"]
[Round "1"]
[White "Kirill_Klukin"]
[Black "ajgreen"]
[Result "1-0"]
[WhiteElo "2672"]
[BlackElo "2389"]
[TimeControl "180+1"]
[EndTime "8:03:02 PDT"]
[Termination "Kirill_Klukin won by resignation"]

1. d4 {[%clk 0:02:56.8]} 1... f5 {[%clk 0:03:00.3]} 2. g3 {[%clk 0:02:55.6]}
2... Nf6 {[%clk 0:03:00.9]} 3. Bg2 {[%clk 0:02:56.1]} 3... d6 {[%clk 0:03:01.7]}
4. c4 {[%clk 0:02:55.7]} 4... g6 {[%clk 0:03:02.4]} 5. Nc3 {[%clk 0:02:56.5]}
5... Bg7 {[%clk 0:03:03.1]} 6. Nf3 {[%clk 0:02:57.2]} 6... O-O {[%clk
0:03:03.7]} 7. O-O {[%clk 0:02:58]} 7... Qe8 {[%clk 0:03:04.3]} 8. d5 {[%clk
0:02:58.4]} 8... a5 {[%clk 0:03:04.4]} 9. Nd4 {[%clk 0:02:56.4]} 9... Na6 {[%clk
0:03:04.7]} 10. b3 {[%clk 0:02:56.3]} 10... Bd7 {[%clk 0:03:03.9]} 11. Bb2
{[%clk 0:02:56.8]} 11... c6 {[%clk 0:03:03.5]} 12. Qd2 {[%clk 0:02:42.5]} 12...
Nc7 {[%clk 0:02:57.5]} 13. Rfe1 {[%clk 0:02:36.6]} 13... e5 {[%clk 0:02:46.6]}
14. dxe6 {[%clk 0:02:36.4]} 14... Bxe6 {[%clk 0:02:45.4]} 15. Nxe6 {[%clk
0:02:35.2]} 15... Qxe6 {[%clk 0:02:46.3]} 16. Rad1 {[%clk 0:02:32.7]} 16... Rfd8
{[%clk 0:02:41.6]} 17. e4 {[%clk 0:02:27]} 17... fxe4 {[%clk 0:02:37.2]} 18.
Nxe4 {[%clk 0:02:26.1]} 18... Nxe4 {[%clk 0:02:34.5]} 19. Rxe4 {[%clk
0:02:26.4]} 19... Qf7 {[%clk 0:02:33.6]} 20. Bxg7 {[%clk 0:02:23.2]} 20... Kxg7
{[%clk 0:02:34.5]} 21. Rde1 {[%clk 0:02:23.5]} 21... Rd7 {[%clk 0:02:34]} 22.
Bh3 {[%clk 0:02:23]} 22... d5 {[%clk 0:02:31.5]} 23. Re5 {[%clk 0:02:08.2]}
23... Rad8 {[%clk 0:02:27]} 24. Bxd7 {[%clk 0:02:08.1]} 24... Rxd7 {[%clk
0:02:27.9]} 25. Qxa5 {[%clk 0:02:04.6]} 25... dxc4 {[%clk 0:02:25.8]} 26. bxc4
{[%clk 0:02:04.9]} 26... Na6 {[%clk 0:02:11.9]} 27. Qc3 {[%clk 0:02:03]} 1-0

[Event "Early-Titled-Tuesday-Blitz-October-17-2023"]
[Site "Chess.com"]
[Date "2023.10.17"]
[Round "1"]
[White "WiktoriaPOL"]
[Black "Bilan_Danila"]
[Result "0-1"]
[WhiteElo "2276"]
[BlackElo "2602"]
[TimeControl "180+1"]
[EndTime "8:03:04 PDT"]
[Termination "Bilan_Danila won by resignation"]

1. c4 {[%clk 0:03:00.9]} 1... c6 {[%clk 0:02:58.6]} 2. Nf3 {[%clk 0:03:00.7]}
2... d5 {[%clk 0:02:58.9]} 3. e3 {[%clk 0:03:01.1]} 3... Nf6 {[%clk 0:02:59.2]}
4. Nc3 {[%clk 0:03:01.4]} 4... e6 {[%clk 0:02:59.4]} 5. b3 {[%clk 0:03:01.8]}
5... Nbd7 {[%clk 0:02:59.4]} 6. Bb2 {[%clk 0:03:02.4]} 6... Bd6 {[%clk
0:02:59.5]} 7. d4 {[%clk 0:03:02]} 7... Ne4 {[%clk 0:02:59]} 8. Bd3 {[%clk
0:02:59.3]} 8... f5 {[%clk 0:02:58]} 9. O-O {[%clk 0:02:57.4]} 9... O-O {[%clk
0:02:57.9]} 10. Qc2 {[%clk 0:02:52.8]} 10... Qf6 {[%clk 0:02:47.1]} 11. Nd2
{[%clk 0:02:50.1]} 11... Qh6 {[%clk 0:02:37.2]} 12. g3 {[%clk 0:02:28.7]} 12...
Ndf6 {[%clk 0:02:31]} 13. f3 {[%clk 0:02:15.9]} 13... Qxe3+ {[%clk 0:02:29.6]}
14. Kh1 {[%clk 0:02:12.2]} 14... Nxd2 {[%clk 0:01:59.5]} 15. Rae1 {[%clk
0:02:07.9]} 15... Qh6 {[%clk 0:01:51.6]} 16. Rf2 {[%clk 0:02:02.7]} 16... Bxg3
{[%clk 0:01:48.8]} 17. Qxd2 {[%clk 0:01:59.6]} 17... Qxd2 {[%clk 0:01:47.8]} 18.
Rxd2 {[%clk 0:01:59.4]} 18... Bxe1 {[%clk 0:01:48.7]} 0-1

[Event "Early-Titled-Tuesday-Blitz-October-17-2023"]
[Site "Chess.com"]
[Date "2023.10.17"]
[Round "1"]
[White "DuleMudule"]
[Black "chenrip"]
[Result "0-1"]
[WhiteElo "2789"]
[BlackElo "2477"]
[TimeControl "180+1"]
[EndTime "8:03:18 PDT"]
[Termination "chenrip won by resignation"]

1. d4 {[%clk 0:03:00.9]} 1... d5 {[%clk 0:02:56.2]} 2. Bf4 {[%clk 0:03:00.6]}
2... e6 {[%clk 0:02:56.2]} 3. e3 {[%clk 0:03:01.2]} 3... Bd6 {[%clk 0:02:56.6]}
4. Bg3 {[%clk 0:03:01.6]} 4... Ne7 {[%clk 0:02:56.7]} 5. Nd2 {[%clk 0:03:01.7]}
5... Nf5 {[%clk 0:02:57.1]} 6. Bd3 {[%clk 0:03:01.5]} 6... Nxg3 {[%clk
0:02:55.7]} 7. hxg3 {[%clk 0:03:02.4]} 7... h6 {[%clk 0:02:55.8]} 8. Ngf3 {[%clk
0:03:02.4]} 8... Bd7 {[%clk 0:02:53.9]} 9. g4 {[%clk 0:03:02.5]} 9... Nc6 {[%clk
0:02:44.2]} 10. g5 {[%clk 0:03:02.1]} 10... Qe7 {[%clk 0:02:42.7]} 11. c3 {[%clk
0:02:56.6]} 11... O-O-O {[%clk 0:02:42.2]} 12. gxh6 {[%clk 0:02:56.4]} 12...
Rxh6 {[%clk 0:02:41.1]} 13. Rxh6 {[%clk 0:02:55.5]} 13... gxh6 {[%clk
0:02:41.7]} 14. Qe2 {[%clk 0:02:55.6]} 14... Rg8 {[%clk 0:02:40.6]} 15. g3
{[%clk 0:02:55.1]} 15... e5 {[%clk 0:02:40.7]} 16. dxe5 {[%clk 0:02:54.1]} 16...
Nxe5 {[%clk 0:02:37.8]} 17. Nxe5 {[%clk 0:02:54.2]} 17... Bxe5 {[%clk
0:02:35.3]} 18. Qh5 {[%clk 0:02:51.7]} 18... Bg7 {[%clk 0:02:24.6]} 19. Qxd5
{[%clk 0:02:45.5]} 19... Be6 {[%clk 0:02:22]} 20. Bf5 {[%clk 0:02:44.4]} 20...
Rd8 {[%clk 0:02:19.6]} 21. Bxe6+ {[%clk 0:02:44.4]} 21... fxe6 {[%clk
0:02:19.7]} 22. Qe4 {[%clk 0:02:44.4]} 22... Qf6 {[%clk 0:02:00]} 23. Nf3 {[%clk
0:02:42.5]} 23... Rd6 {[%clk 0:01:47]} 24. Rd1 {[%clk 0:02:38.1]} 24... Rxd1+
{[%clk 0:01:18.5]} 25. Kxd1 {[%clk 0:02:37.4]} 25... c6 {[%clk 0:01:18.7]} 26.
Ke2 {[%clk 0:02:36.9]} 26... Kd7 {[%clk 0:01:13.8]} 27. g4 {[%clk 0:02:36.2]}
0-1

[Event "Early-Titled-Tuesday-Blitz-October-17-2023"]
[Site "Chess.com"]
[Date "2023.10.17"]
[Round "1"]
[White "GP9isback23"]
[Black "gtnamfrq"]
[Result "1-0"]
[WhiteElo "2646"]
[BlackElo "2358"]
[TimeControl "180+1"]
[EndTime "8:03:21 PDT"]
[Termination "GP9isback23 won by resignation"]

1. Nf3 {[%clk 0:03:00.5]} 1... d5 {[%clk 0:02:59.2]} 2. e3 {[%clk 0:03:00.5]}
2... Nf6 {[%clk 0:02:57.5]} 3. c4 {[%clk 0:02:59.4]} 3... e6 {[%clk 0:02:53.9]}
4. b3 {[%clk 0:02:59.5]} 4... Be7 {[%clk 0:02:52.8]} 5. Bb2 {[%clk 0:03:00]}
5... O-O {[%clk 0:02:53.2]} 6. Be2 {[%clk 0:02:59.7]} 6... c6 {[%clk 0:02:52.4]}
7. O-O {[%clk 0:03:00]} 7... Nbd7 {[%clk 0:02:52.8]} 8. d4 {[%clk 0:03:00.4]}
8... b6 {[%clk 0:02:52.6]} 9. Nbd2 {[%clk 0:03:00.9]} 9... Bb7 {[%clk 0:02:53]}
10. Ne5 {[%clk 0:03:01.6]} 10... Rc8 {[%clk 0:02:50.8]} 11. f4 {[%clk
0:03:01.2]} 11... Ne4 {[%clk 0:02:44.4]} 12. Nxe4 {[%clk 0:02:45.6]} 12... dxe4
{[%clk 0:02:44.4]} 13. Qc2 {[%clk 0:02:43.3]} 13... c5 {[%clk 0:02:37]} 14. Rad1
{[%clk 0:02:41.6]} 14... Qc7 {[%clk 0:02:27.1]} 15. Nxd7 {[%clk 0:02:37.5]}
15... Qxd7 {[%clk 0:02:28]} 16. dxc5 {[%clk 0:02:37.9]} 16... Qc6 {[%clk
0:02:24.9]} 17. cxb6 {[%clk 0:02:38]} 17... Qxb6 {[%clk 0:02:25.4]} 18. Bd4
{[%clk 0:02:37.5]} 18... Qa5 {[%clk 0:02:22.9]} 19. a3 {[%clk 0:02:11.2]} 19...
Rfd8 {[%clk 0:01:59.2]} 20. b4 {[%clk 0:02:09.7]} 20... Qxa3 {[%clk 0:01:52.8]}
21. Ra1 {[%clk 0:02:08.4]} 21... Qxb4 {[%clk 0:01:53]} 22. Rfb1 {[%clk
0:02:07.1]} 22... Qd6 {[%clk 0:01:31]} 1-0

[Event "Early-Titled-Tuesday-Blitz-October-17-2023"]
[Site "Chess.com"]
[Date "2023.10.17"]
[Round "1"]
[White "maracayo"]
[Black "Rutricks"]
[Result "0-1"]
[WhiteElo "2369"]
[BlackElo "2657"]
[TimeControl "180+1"]
[EndTime "8:03:46 PDT"]
[Termination "Rutricks won by resignation"]

1. e4 {[%clk 0:03:00.9]} 1... g6 {[%clk 0:03:00.9]} 2. Nf3 {[%clk 0:02:57.6]}
2... Bg7 {[%clk 0:03:01.8]} 3. d4 {[%clk 0:02:57]} 3... c6 {[%clk 0:03:01.1]} 4.
Bd3 {[%clk 0:02:56]} 4... d5 {[%clk 0:03:02]} 5. e5 {[%clk 0:02:54.9]} 5... f6
{[%clk 0:03:02]} 6. O-O {[%clk 0:02:53.3]} 6... Bg4 {[%clk 0:03:00.4]} 7. exf6
{[%clk 0:02:43.1]} 7... Nxf6 {[%clk 0:03:01.3]} 8. h3 {[%clk 0:02:42.5]} 8...
Bxf3 {[%clk 0:03:01.6]} 9. Qxf3 {[%clk 0:02:41.8]} 9... O-O {[%clk 0:03:02.5]}
10. Qe2 {[%clk 0:02:38]} 10... Qd6 {[%clk 0:03:01.7]} 11. c4 {[%clk 0:02:35]}
11... Nh5 {[%clk 0:02:54.2]} 12. c5 {[%clk 0:02:18.9]} 12... Qf6 {[%clk
0:02:49]} 13. Be3 {[%clk 0:01:54.6]} 13... e5 {[%clk 0:02:46.6]} 14. dxe5 {[%clk
0:01:50.2]} 14... Qxe5 {[%clk 0:02:47.5]} 15. Nc3 {[%clk 0:01:42.1]} 15... d4
{[%clk 0:02:44.3]} 16. Bc4+ {[%clk 0:01:37.5]} 16... Kh8 {[%clk 0:02:44.6]} 17.
Bxd4 {[%clk 0:01:20.8]} 17... Qxd4 {[%clk 0:02:45.5]} 18. Rad1 {[%clk
0:01:20.9]} 18... Qxc5 {[%clk 0:02:43.8]} 19. Ne4 {[%clk 0:01:21]} 19... Qe7
{[%clk 0:02:33.4]} 20. Qg4 {[%clk 0:01:21.3]} 20... Nf6 {[%clk 0:02:09.7]} 21.
Nxf6 {[%clk 0:01:18.2]} 21... Qxf6 {[%clk 0:02:10.6]} 22. Bb3 {[%clk 0:01:12.3]}
22... Na6 {[%clk 0:02:10.7]} 0-1

[Event "Early-Titled-Tuesday-Blitz-October-17-2023"]
[Site "Chess.com"]
[Date "2023.10.17"]
[Round "1"]
[White "YouJustFoundYourGodfather"]
[Black "NCchamp"]
[Result "1-0"]
[WhiteElo "2619"]
[BlackElo "2310"]
[TimeControl "180+1"]
[EndTime "8:03:50 PDT"]
[Termination "YouJustFoundYourGodfather won by resignation"]

1. b3 {[%clk 0:03:00.9]} 1... d5 {[%clk 0:02:58.1]} 2. Bb2 {[%clk 0:03:01.8]}
2... Bf5 {[%clk 0:02:58]} 3. Nf3 {[%clk 0:03:00.7]} 3... e6 {[%clk 0:02:58.5]}
4. g3 {[%clk 0:02:57.4]} 4... Nf6 {[%clk 0:02:58.3]} 5. Bg2 {[%clk 0:02:57.8]}
5... h6 {[%clk 0:02:58.8]} 6. O-O {[%clk 0:02:56.4]} 6... Bh7 {[%clk 0:02:58.2]}
7. d3 {[%clk 0:02:56.4]} 7... Be7 {[%clk 0:02:54.8]} 8. Nbd2 {[%clk 0:02:56.3]}
8... O-O {[%clk 0:02:55.5]} 9. c4 {[%clk 0:02:56.7]} 9... c6 {[%clk 0:02:52.1]}
10. Rc1 {[%clk 0:02:56.2]} 10... Nbd7 {[%clk 0:02:52.1]} 11. Qc2 {[%clk
0:02:49.7]} 11... Re8 {[%clk 0:02:50.8]} 12. Qb1 {[%clk 0:02:49.2]} 12... a5
{[%clk 0:02:48.1]} 13. a3 {[%clk 0:02:46.9]} 13... Qb6 {[%clk 0:02:35.2]} 14.
Qa1 {[%clk 0:02:46.1]} 14... Qa6 {[%clk 0:02:35.5]} 15. Rfe1 {[%clk 0:02:45.1]}
15... b5 {[%clk 0:02:31.5]} 16. cxb5 {[%clk 0:02:42.6]} 16... cxb5 {[%clk
0:02:30.8]} 17. Nd4 {[%clk 0:02:42.5]} 17... Rac8 {[%clk 0:02:24.2]} 18. a4
{[%clk 0:02:40.7]} 18... b4 {[%clk 0:02:09.9]} 19. Nb5 {[%clk 0:02:40.1]} 19...
Qb7 {[%clk 0:02:02.6]} 20. Nf3 {[%clk 0:02:32.8]} 20... Rxc1 {[%clk 0:01:59.8]}
21. Rxc1 {[%clk 0:02:32.4]} 21... Rc8 {[%clk 0:02:00.7]} 22. Ne5 {[%clk
0:02:26.2]} 22... Nxe5 {[%clk 0:01:57.8]} 23. Bxe5 {[%clk 0:02:25.8]} 23... Ne8
{[%clk 0:01:58.1]} 24. Bd4 {[%clk 0:02:17.3]} 24... Bf6 {[%clk 0:01:40.7]} 25.
Bxf6 {[%clk 0:02:10.6]} 25... Nxf6 {[%clk 0:01:38.1]} 26. Nd6 {[%clk 0:02:09.1]}
26... Rxc1+ {[%clk 0:01:28.2]} 27. Qxc1 {[%clk 0:02:10]} 27... Qb6 {[%clk
0:01:26]} 28. Qc8+ {[%clk 0:02:07.5]} 1-0

[Event "Early-Titled-Tuesday-Blitz-October-17-2023"]
[Site "Chess.com"]
[Date "2023.10.17"]
[Round "1"]
[White "Baku_Boulevard"]
[Black "masterofpuppets2"]
[Result "1-0"]
[WhiteElo "3013"]
[BlackElo "2518"]
[TimeControl "180+1"]
[EndTime "8:04:01 PDT"]
[Termination "Baku_Boulevard won by checkmate"]

1. e4 {[%clk 0:02:59.5]} 1... c5 {[%clk 0:02:59.7]} 2. Nf3 {[%clk 0:02:59.6]}
2... Nc6 {[%clk 0:02:58.7]} 3. Nc3 {[%clk 0:02:59.2]} 3... Nf6 {[%clk
0:02:55.4]} 4. g3 {[%clk 0:02:58.7]} 4... g6 {[%clk 0:02:44.8]} 5. Bg2 {[%clk
0:02:58.6]} 5... Bg7 {[%clk 0:02:45]} 6. O-O {[%clk 0:02:59.1]} 6... O-O {[%clk
0:02:40.5]} 7. d3 {[%clk 0:02:58.4]} 7... d6 {[%clk 0:02:40.2]} 8. Re1 {[%clk
0:02:58]} 8... Nd7 {[%clk 0:02:32]} 9. a4 {[%clk 0:02:56.7]} 9... Rb8 {[%clk
0:02:31]} 10. Ne2 {[%clk 0:02:56.1]} 10... a6 {[%clk 0:02:21.4]} 11. c3 {[%clk
0:02:55.2]} 11... b5 {[%clk 0:02:19.2]} 12. axb5 {[%clk 0:02:56]} 12... axb5
{[%clk 0:02:20.1]} 13. Be3 {[%clk 0:02:56.2]} 13... b4 {[%clk 0:02:18.8]} 14. d4
{[%clk 0:02:55.6]} 14... Qb6 {[%clk 0:02:11.8]} 15. Nf4 {[%clk 0:02:53.4]} 15...
Bb7 {[%clk 0:01:58.8]} 16. h4 {[%clk 0:02:51.3]} 16... Ra8 {[%clk 0:01:54.7]}
17. Rb1 {[%clk 0:02:49.4]} 17... Qd8 {[%clk 0:01:48.7]} 18. h5 {[%clk
0:02:49.6]} 18... Ba6 {[%clk 0:01:44.9]} 19. Ng5 {[%clk 0:02:42.1]} 19... Rc8
{[%clk 0:01:32]} 20. hxg6 {[%clk 0:02:41.4]} 20... hxg6 {[%clk 0:01:31.5]} 21.
Qg4 {[%clk 0:02:39.6]} 21... Bf6 {[%clk 0:01:27.9]} 22. Nge6 {[%clk 0:02:37.5]}
22... fxe6 {[%clk 0:01:22.4]} 23. Qxg6+ {[%clk 0:02:36.9]} 23... Kh8 {[%clk
0:01:20.3]} 24. Qh5+ {[%clk 0:02:35.3]} 24... Kg8 {[%clk 0:01:17.5]} 25. Bh3
{[%clk 0:02:35.6]} 25... Rf7 {[%clk 0:01:13.5]} 26. Bxe6 {[%clk 0:02:35.5]}
26... Qe8 {[%clk 0:01:11.5]} 27. Qg6+ {[%clk 0:02:33.9]} 27... Kf8 {[%clk
0:01:05.4]} 28. Nh5 {[%clk 0:02:34]} 28... Bg7 {[%clk 0:01:02.1]} 29. Bh6 {[%clk
0:02:33.2]} 29... Bxh6 {[%clk 0:00:50.5]} 30. Qxh6+ {[%clk 0:02:33.3]} 30... Kg8
{[%clk 0:00:51]} 31. Qg7# {[%clk 0:02:34.2]} 1-0

[Event "Early-Titled-Tuesday-Blitz-October-17-2023"]
[Site "Chess.com"]
[Date "2023.10.17"]
[Round "1"]
[White "brm72"]
[Black "Sychev_Klementy"]
[Result "1/2-1/2"]
[WhiteElo "2503"]
[BlackElo "2833"]
[TimeControl "180+1"]
[EndTime "8:04:04 PDT"]
[Termination "Game drawn by agreement"]

1. e4 {[%clk 0:03:00.9]} 1... e5 {[%clk 0:02:59.4]} 2. Nf3 {[%clk 0:03:00.7]}
2... Nc6 {[%clk 0:03:00.1]} 3. d4 {[%clk 0:02:59.5]} 3... exd4 {[%clk 0:03:00]}
4. Nxd4 {[%clk 0:03:00.4]} 4... Nf6 {[%clk 0:03:00.5]} 5. Nc3 {[%clk 0:02:58.2]}
5... Bb4 {[%clk 0:02:59.8]} 6. Nxc6 {[%clk 0:02:57]} 6... bxc6 {[%clk
0:03:00.7]} 7. Bd3 {[%clk 0:02:56.4]} 7... O-O {[%clk 0:03:01.3]} 8. O-O {[%clk
0:02:55.7]} 8... d5 {[%clk 0:03:01.8]} 9. exd5 {[%clk 0:02:54.1]} 9... cxd5
{[%clk 0:03:02.2]} 10. h3 {[%clk 0:02:52.9]} 10... Be6 {[%clk 0:02:59.4]} 11.
Qf3 {[%clk 0:02:51.4]} 11... Rb8 {[%clk 0:02:54.7]} 12. Bg5 {[%clk 0:02:48.4]}
12... h6 {[%clk 0:02:52.2]} 13. Bh4 {[%clk 0:02:44.9]} 13... Bd6 {[%clk
0:02:48.1]} 14. Rab1 {[%clk 0:02:30.8]} 14... Rb4 {[%clk 0:02:38.3]} 15. Bxf6
{[%clk 0:02:23.1]} 15... Qxf6 {[%clk 0:02:37.2]} 16. Qxf6 {[%clk 0:02:22.4]}
16... gxf6 {[%clk 0:02:37.6]} 17. Ne2 {[%clk 0:02:19.2]} 17... c5 {[%clk
0:02:37.4]} 18. c3 {[%clk 0:02:17.3]} 18... Rb6 {[%clk 0:02:37.4]} 19. b3 {[%clk
0:02:17.1]} 19... Rfb8 {[%clk 0:02:32.5]} 20. f4 {[%clk 0:02:08.4]} 20... a5
{[%clk 0:02:27.5]} 21. Bc2 {[%clk 0:02:03.3]} 21... a4 {[%clk 0:02:07.7]} 22.
Rbd1 {[%clk 0:01:56.2]} 22... axb3 {[%clk 0:02:05.3]} 23. axb3 {[%clk
0:01:52.9]} 23... d4 {[%clk 0:01:58]} 24. cxd4 {[%clk 0:01:51.7]} 24... Bxb3
{[%clk 0:01:56.2]} 25. Bxb3 {[%clk 0:01:48.4]} 25... Rxb3 {[%clk 0:01:57.1]} 26.
dxc5 {[%clk 0:01:49.1]} 26... Bxc5+ {[%clk 0:01:57.2]} 27. Kh2 {[%clk
0:01:49.7]} 27... Rb2 {[%clk 0:01:55.1]} 28. Ng3 {[%clk 0:01:48]} 28... Ra2
{[%clk 0:01:50.3]} 29. Rb1 {[%clk 0:01:44.5]} 29... Rxb1 {[%clk 0:01:34.9]} 30.
Rxb1 {[%clk 0:01:45.4]} 30... Be3 {[%clk 0:01:31.7]} 1/2-1/2

[Event "Early-Titled-Tuesday-Blitz-October-17-2023"]
[Site "Chess.com"]
[Date "2023.10.17"]
[Round "1"]
[White "arminmusovic"]
[Black "MightyGMpretender"]
[Result "0-1"]
[WhiteElo "2483"]
[BlackElo "2822"]
[TimeControl "180+1"]
[EndTime "8:04:10 PDT"]
[Termination "MightyGMpretender won by resignation"]

1. a3 {[%clk 0:03:00]} 1... e5 {[%clk 0:02:58.8]} 2. Nc3 {[%clk 0:03:00.9]} 2...
d5 {[%clk 0:02:58.2]} 3. d4 {[%clk 0:03:01.4]} 3... e4 {[%clk 0:02:56.7]} 4. Bf4
{[%clk 0:03:01.1]} 4... c6 {[%clk 0:02:55.9]} 5. f3 {[%clk 0:03:01.3]} 5... f5
{[%clk 0:02:46.8]} 6. Qd2 {[%clk 0:03:01.7]} 6... Nf6 {[%clk 0:02:46.8]} 7. Nh3
{[%clk 0:03:01.8]} 7... Be7 {[%clk 0:02:46.6]} 8. e3 {[%clk 0:03:02]} 8... O-O
{[%clk 0:02:45.7]} 9. Be2 {[%clk 0:03:02.6]} 9... h6 {[%clk 0:02:35.9]} 10. O-O
{[%clk 0:03:00.7]} 10... Be6 {[%clk 0:02:35.3]} 11. Be5 {[%clk 0:03:00.2]} 11...
Nbd7 {[%clk 0:02:35.5]} 12. f4 {[%clk 0:02:59.6]} 12... Kh7 {[%clk 0:02:24.3]}
13. Kh1 {[%clk 0:03:00]} 13... Qe8 {[%clk 0:02:22.1]} 14. Rg1 {[%clk 0:02:58.9]}
14... Qg6 {[%clk 0:02:21.7]} 15. Nf2 {[%clk 0:02:53.9]} 15... Nxe5 {[%clk
0:02:18.3]} 16. fxe5 {[%clk 0:02:53.3]} 16... Ng4 {[%clk 0:02:18.9]} 17. Raf1
{[%clk 0:02:46.9]} 17... Bg5 {[%clk 0:02:16.1]} 18. Nxg4 {[%clk 0:02:42.7]}
18... fxg4 {[%clk 0:02:17]} 19. Nd1 {[%clk 0:02:42.9]} 19... h5 {[%clk
0:02:13.3]} 20. c4 {[%clk 0:02:37.8]} 20... dxc4 {[%clk 0:02:06.9]} 21. Nc3
{[%clk 0:02:38.1]} 21... Qh6 {[%clk 0:02:02.6]} 22. Rxf8 {[%clk 0:02:33.1]}
22... Rxf8 {[%clk 0:02:01.4]} 23. Qc2 {[%clk 0:02:19.8]} 23... Bxe3 {[%clk
0:02:00.5]} 24. Rd1 {[%clk 0:02:14.2]} 24... Qg6 {[%clk 0:01:48.5]} 25. Qxe4
{[%clk 0:02:04]} 25... Qxe4 {[%clk 0:01:48]} 26. Nxe4 {[%clk 0:02:04.9]} 26...
Bd5 {[%clk 0:01:38.4]} 27. Nc3 {[%clk 0:01:53.9]} 27... Rf2 {[%clk 0:01:26.6]}
28. Rg1 {[%clk 0:01:49.5]} 28... Bxd4 {[%clk 0:01:22.1]} 29. Nxd5 {[%clk
0:01:46.6]} 29... Rxe2 {[%clk 0:01:21.2]} 30. Nf6+ {[%clk 0:01:43.3]} 0-1

[Event "Early-Titled-Tuesday-Blitz-October-17-2023"]
[Site "Chess.com"]
[Date "2023.10.17"]
[Round "1"]
[White "Mandaloriana19"]
[Black "GMMatamoros"]
[Result "0-1"]
[WhiteElo "2227"]
[BlackElo "2579"]
[TimeControl "180+1"]
[EndTime "8:04:14 PDT"]
[Termination "GMMatamoros won by resignation"]

1. c4 {[%clk 0:02:57.1]} 1... g6 {[%clk 0:02:58.2]} 2. Nf3 {[%clk 0:02:54.7]}
2... Bg7 {[%clk 0:02:58.3]} 3. d4 {[%clk 0:02:52.5]} 3... Nf6 {[%clk 0:02:55.9]}
4. e3 {[%clk 0:02:51.5]} 4... O-O {[%clk 0:02:55.6]} 5. Be2 {[%clk 0:02:51]}
5... d6 {[%clk 0:02:55.9]} 6. O-O {[%clk 0:02:50.7]} 6... Nbd7 {[%clk
0:02:56.4]} 7. Nc3 {[%clk 0:02:50.3]} 7... e5 {[%clk 0:02:57]} 8. b3 {[%clk
0:02:47.2]} 8... Re8 {[%clk 0:02:56.9]} 9. Qc2 {[%clk 0:02:46.6]} 9... Nf8
{[%clk 0:02:51.5]} 10. Bb2 {[%clk 0:02:45.8]} 10... e4 {[%clk 0:02:51.2]} 11.
Nd2 {[%clk 0:02:44]} 11... Bf5 {[%clk 0:02:51.1]} 12. d5 {[%clk 0:02:37.7]}
12... h5 {[%clk 0:02:48.2]} 13. Nb5 {[%clk 0:02:35]} 13... N8h7 {[%clk
0:02:41.2]} 14. Nd4 {[%clk 0:02:34.1]} 14... Bd7 {[%clk 0:02:41.4]} 15. Rae1
{[%clk 0:02:26.6]} 15... c5 {[%clk 0:02:34.4]} 16. dxc6 {[%clk 0:02:23]} 16...
bxc6 {[%clk 0:02:35.3]} 17. Qb1 {[%clk 0:02:20.7]} 17... a6 {[%clk 0:02:32.6]}
18. Bd1 {[%clk 0:02:20.5]} 18... c5 {[%clk 0:02:32.6]} 19. Ne2 {[%clk
0:02:19.7]} 19... h4 {[%clk 0:02:31.6]} 20. Nc3 {[%clk 0:02:19.1]} 20... Bf5
{[%clk 0:02:29.5]} 21. Bc2 {[%clk 0:02:19.1]} 21... Ng5 {[%clk 0:02:25.9]} 22.
Nd5 {[%clk 0:02:17.1]} 22... Nxd5 {[%clk 0:02:24.6]} 23. cxd5 {[%clk 0:02:18]}
23... Be5 {[%clk 0:02:24.3]} 24. Nc4 {[%clk 0:02:15.1]} 24... Bxb2 {[%clk
0:02:16.8]} 25. Qxb2 {[%clk 0:02:16]} 25... h3 {[%clk 0:02:17]} 26. f4 {[%clk
0:02:13]} 26... hxg2 {[%clk 0:02:13.2]} 27. Kxg2 {[%clk 0:02:01]} 27... Nf3
{[%clk 0:02:08.5]} 28. Re2 {[%clk 0:01:49.8]} 28... Bh3+ {[%clk 0:02:02.7]} 29.
Kh1 {[%clk 0:01:36.4]} 29... Bxf1 {[%clk 0:02:02.1]} 30. Rf2 {[%clk 0:01:34.8]}
30... Bxc4 {[%clk 0:02:00.6]} 31. bxc4 {[%clk 0:01:33.9]} 31... Qh4 {[%clk
0:01:57.1]} 32. Bd1 {[%clk 0:01:27.9]} 32... Rab8 {[%clk 0:01:55.9]} 33. Qc2
{[%clk 0:01:24.5]} 33... Rb1 {[%clk 0:01:55.2]} 0-1